Cogmind - Beta 10.2 @@@ ROGUE MODE // 2021.03.29 @ 14:43:33 Player: Humppa Result: Destroyed by D-53 Grenadier with Mini Grenade Launcher Performance ------------- Evolutions (0) 0 Regions Visited (2) 400 Robots Destroyed (11) 55 Value Destroyed (202) 202 Prototype IDs (0) 0 Alien Tech Used (0) 0 Bonus (0) 0 TOTAL SCORE: 657 Bonus ------- None Cogmind --------- Core Integrity 0/250 Matter 294/300 Energy 125/125 System Corruption 0% Temperature Cool (0) Movement Walking (240) Ox4 Location -10/Mines Parts ------- > --- POWER (1) -------- Light Ion Engine > --- PROPULSION (2) --- Aluminum Leg > --- UTILITY (2) ------ Large Storage Unit Large Storage Unit > --- WEAPON (2) ------- Slug Cannon > --- INVENTORY (16) --- Aluminum Leg Aluminum Leg Aluminum Leg Aluminum Leg Improved Signal Interpreter Terrain Scanner Terrain Scan Processor Assault Rifle Light Assault Rifle Mining Laser Peak State ------------ > --- POWER ------------ Light Ion Engine > --- PROPULSION ------- Aluminum Leg Aluminum Leg > --- UTILITY ---------- Large Storage Unit Large Storage Unit > --- WEAPON ----------- Medium Laser Slug Cannon > --- INVENTORY -------- Aluminum Leg Aluminum Leg Aluminum Leg Aluminum Leg Aluminum Leg Improved Signal Interpreter Terrain Scanner Terrain Scan Processor Assault Rifle Light Assault Rifle Mining Laser [Rating: 11] Favorites ----------- Power Light Ion Engine Engine Light Ion Engine Propulsion Aluminum Leg Leg Aluminum Leg Utility Large Storage Unit Storage Large Storage Unit Weapon Medium Laser Energy Gun Medium Laser Ballistic Gun Assault Rifle Ballistic Cannon Slug Cannon Special Weapon Mining Laser Build | -11 -10 -10 ------- Run | Scr Mat Min Slots Evolved . | . . . Power . | . . . Propulsion . | . . . Utility . | . . . Weapon . | . . . Parts Attached 14 | 7 3 4 Power 2 | 1 . 1 Engine 2 | 1 . 1 Core . | . . . Reactor . | . . . Propulsion 3 | 2 . 1 Treads . | . . . Leg 3 | 2 . 1 Wheel . | . . . Hover . | . . . Flight . | . . . Utility 3 | 1 2 . Device . | . . . Storage 3 | 1 2 . Processor . | . . . Hackware . | . . . Protection . | . . . Artifact . | . . . Weapon 6 | 3 1 2 Energy Gun 2 | 1 . 1 Energy Cannon . | . . . Ballistic Gun 2 | 2 . . Ballistic Cannon 1 | . . 1 Launcher . | . . . Special Weapon 1 | . 1 . Impact Weapon . | . . . Slashing Weapon . | . . . Piercing Weapon . | . . . Special Melee Weapon . | . . . Unidentified Prototypes . | . . . Parts Lost 5 | . 2 3 Power 1 | . 1 . Propulsion 2 | . . 2 Utility . | . . . Weapon 2 | . 1 1 Highest Loss Streak 3 | . 2 3 Average Slot Usage (%) 96 | . 93 99 Engine 14 | . 14 14 Leg 27 | . 28 27 Storage 25 | . 21 28 Energy Gun 13 | . 12 13 Ballistic Gun 5 | . 14 1 Ballistic Cannon 8 | . . 12 Naked Turns . | . . . Heaviest Build 44 | 13 41 44 Greatest Support 20 | 20 20 20 Greatest Overweight (x) 4 | 2 2 4 Average Overweight (x) 1 | . . 1 Largest Inventory Capacity 16 | 6 16 16 Average Capacity 13 | 5 11 16 Most Carried 12 | 2 12 11 Average Carried 8 | 1 6 10 Final Capacity 16 | 6 16 16 Final Carried 12 | 2 12 10 Class Distribution -------------------- 100% | Mutant Dominant Class ---------------- Mutant | -10/Materials Mutant | -10/Mines Resources | -11 -10 -10 ----------- Run | Scr Mat Min Matter Collected 425 | 189 84 152 Remotely . | . . . Salvage Created 223 | . 84 139 Parts 13 | . 4 9 Haulers Intercepted . | . . . Recyclers Shooed 2 | . 1 1 Parts Field Recycled . | . . . Retrieved Matter . | . . . Parts Self-Destructed . | . . . Prevented . | . . . Kills | -11 -10 -10 ------- Run | Scr Mat Min Combat Hostiles Destroyed 10 | . 4 6 Guns 6 | . 2 4 Cannons 4 | . 2 2 Classes Destroyed 3 | . 1 2 Recycler 1 | . . 1 Swarmer 6 | . . 6 Grunt 4 | . 4 . Best Kill Streak 4 | . 2 4 Combat Bots Only 3 | . 2 3 Max Kills in Single Turn 1 | . 1 1 Gunslinging . | . . . Exploded . | . . . Melee . | . . . Uniques/NPCs Destroyed . | . . . Combat | -11 -10 -10 -------- Run | Scr Mat Min Damage Taken 933 | . 385 548 Core 290 | . 81 209 Absorbed by Shields . | . . . Core Remaining (%) 100 | 100 . . Volleys Fired 26 | . 15 11 Largest 2 | . 2 2 Hottest 120 | . 120 98 Shots Fired 50 | . 28 22 Gun 35 | . 24 11 Cannon 11 | . . 11 Launcher . | . . . Special 4 | . 4 . Kinetic 26 | . 15 11 Thermal 24 | . 13 11 Explosive . | . . . Electromagnetic . | . . . Robot Hit Streak 10 | . 6 10 Robot Miss Streak 3 | . 3 3 Penetration Max . | . . . Secondary Targets . | . . . Shots Hit Robots 29 | . 16 13 Core Hits 15 | . 7 8 Critical Hits 1 | . . 1 Critical Kills . | . . . Critical Parts Destroyed . | . . . Melee Attacks . | . . . Impact . | . . . Slashing . | . . . Piercing . | . . . Sneak Attacks . | . . . Combat Hostiles . | . . . Follow-up Attacks . | . . . Damage Inflicted 462 | . 227 235 Guns 255 | . 155 100 Cannons 135 | . . 135 Explosions . | . . . Melee . | . . . Ramming . | . . . Kinetic 215 | . 80 135 Thermal 247 | . 147 100 Explosive . | . . . Electromagnetic . | . . . Impact . | . . . Slashing . | . . . Piercing . | . . . Highest Corruption . | . . . Average Corruption . | . . . Corruption Purged . | . . . Overload Shots . | . . . Overflow Damage 5 | . . 5 Projectiles 5 | . . 5 Explosions . | . . . Melee . | . . . Knockbacks 4 | . . 4 Impact . | . . . Kinetic 2 | . . 2 Secondary 2 | . . 2 Self-Inflicted Damage . | . . . Shots . | . . . Rammed . | . . . Targets Rammed . | . . . Kicked . | . . . Crushed . | . . . Highest Temperature 216 | . 91 216 Average Temperature 64 | . 41 90 Received Heat Transfer 90 | . 90 . Siege Activations . | . . . Robots Corrupted . | . . . Combat Hostiles . | . . . Parts Fried . | . . . Impact Corruptions . | . . . Robots Melted . | . . . Combat Hostiles . | . . . Parts Melted . | . . . Heat Transferred 668 | . 372 296 Parts Sabotaged . | . . . Parts Stolen . | . . . Parts Stripped . | . . . Power Chain Reactions . | . . . Missiles Intercepted . | . . . Alert | -11 -10 -10 ------- Run | Scr Mat Min Peak Influence 176 | . 100 176 Initial 31 | . . 31 Average 68 | . 38 93 Maximum Alert Level . | . . . Low Security (%) 100 | 100 100 100 Level 1 . | . . . Level 2 . | . . . Level 3 . | . . . Level 4 . | . . . Level 5 . | . . . High Security . | . . . Max Security . | . . . Squads Dispatched 3 | . 3 . Investigation . | . . . Extermination . | . . . Reinforcement 3 | . 3 . Assault . | . . . Garrison . | . . . Intercept . | . . . Construction Impeded . | . . . Haulers Reinforced . | . . . Stealth | -11 -10 -10 --------- Run | Scr Mat Min Distress Signals . | . . . Communications Jammed . | . . . Distress Signals . | . . . Times Spotted 34 | . 12 22 Peak Tracking Total 13 | . 5 13 Tactical Retreats 1 | . . 1 Traps | -11 -10 -10 ------- Run | Scr Mat Min Traps Triggered . | . . . Indirectly . | . . . Trap Hack Attempts . | . . . Triggered . | . . . Disarmed . | . . . Reprogrammed . | . . . Reused . | . . . Traps Extracted . | . . . Installed . | . . . Triggered . | . . . Machines | -11 -10 -10 ---------- Run | Scr Mat Min Machines Disabled . | . . . Max in Single Turn . | . . . Machines Sabotaged . | . . . Garrisons Compromised . | . . . Overloaded Fab Kills . | . . . Fab Network Shutdowns . | . . . Hacking | -11 -10 -10 --------- Run | Scr Mat Min Machines Accessed . | . . . Terminals . | . . . Fabricators . | . . . Repair Stations . | . . . Recycling Units . | . . . Scanalyzers . | . . . Garrison Access . | . . . Total Hacks . | . . . Successful . | . . . Failed . | . . . Catastrophic . | . . . Database Lockouts . | . . . Manual . | . . . Terminals . | . . . Fabricators . | . . . Repair Stations . | . . . Recycling Units . | . . . Scanalyzers . | . . . Garrison Access . | . . . Terminal Hacks . | . . . Fabricator Hacks . | . . . Repair Station Hacks . | . . . Recycling Unit Hacks . | . . . Scanalyzer . | . . . Garrison Access Hacks . | . . . Unauthorized Hacks . | . . . Terminals . | . . . Fabricators . | . . . Repair Stations . | . . . Recycling Units . | . . . Scanalyzers . | . . . Garrison Access . | . . . Data Cores Recovered . | . . . Used . | . . . Hacking Detections . | . . . Full Trace Events . | . . . Feedback Events . | . . . Feedback Blocked . | . . . Robot Schematics Acquired . | . . . Robots Built . | . . . Matter . | . . . Time . | . . . Total Robot Build Rating . | . . . Part Schematics Acquired . | . . . Parts Built . | . . . Matter . | . . . Time . | . . . Total Part Build Rating . | . . . Parts Repaired . | . . . Time . | . . . Parts Recycled . | . . . Recycled Matter . | . . . Retrieved Matter . | . . . Retrieved Components . | . . . Parts Scanalyzed . | . . . Part Schematics Acquired . | . . . Parts Damaged . | . . . Bothacking | -11 -10 -10 ------------ Run | Scr Mat Min Used RIF Installer . | . . . Robots Hacked . | . . . Non-combat . | . . . Combat . | . . . Robot Hacks Applied . | . . . Relay Couplers Released . | . . . Robots Rewired . | . . . Allies Hacked . | . . . Hacks Repelled . | . . . Allies | -11 -10 -10 -------- Run | Scr Mat Min Total Allies . | . . . Largest Group . | . . . Highest-Rated Group . | . . . Highest-Rated Ally . | . . . Total Orders . | . . . Ally Attacks . | . . . Total Damage . | . . . Kills . | . . . Allies Corrupted . | . . . Allies Melted . | . . . Intel | -11 -10 -10 ------- Run | Scr Mat Min Robot Analysis Total . | . . . Derelict Logs Recovered 1 | . . 1 Drone Launches . | . . . Drone Recoveries . | . . . Exploration | -11 -10 -10 ------------- Run | Scr Mat Min Turns Passed 817 | 57 281 479 Spaces Moved 428 | 42 142 244 Core 11 | 11 . . Treads . | . . . Legs 417 | 31 142 244 Wheels . | . . . Hover . | . . . Flight . | . . . Fastest Speed 50 | 50 120 150 Average Speed 161 | 107 146 178 Slowest Speed 240 | 150 180 240 Overloaded Moves . | . . . Propulsion Burnouts . | . . . Robots Hopped . | . . . Cave-ins Triggered . | . . . Exploration Rate (%) 31 | 3 29 63 Regions Visited 2 Branch Regions 1 Pre-discovered Areas 1 | . . 1 Known Exits Taken . | . . . Unknown Exits Taken 2 | 1 1 . Scrap Searched 1 | . . 1 Spaces Dug . | . . . Terrain Destroyed 5 | . . 5 Melee . | . . . Projectile 5 | . . 5 AOE . | . . . Terrain Rammed . | . . . Walls Destroyed . | . . . Machines Disabled . | . . . Actions | -11 -10 -10 --------- Run | Scr Mat Min Total 492 | 50 178 264 Wait 11 | . 7 4 Move 426 | 41 141 244 Hop . | . . . Pick Up 13 | 2 10 1 Fast Attach 8 | 6 2 . Attach 3 | . . 3 Detach 1 | . 1 . Swap 3 | 1 1 1 Drop 1 | . 1 . Fire 26 | . 15 11 Melee . | . . . Ram . | . . . Kick . | . . . Crush . | . . . Escape Stasis . | . . . Rewire . | . . . Trap . | . . . Miscellaneous . | . . . Route ------- -11/Scrapyard -10/Materials -10/Mines (discovered 2 exits: [*Mat x2]) History --------- Turn | Location | Event 6 | -11/Scrapyard | Discovered new exit (range 15) 58 | -11/Scrapyard | Entered Materials 272 | -10/Materials | Discovered new exit (range 14) 321 | -10/Materials | Build established: Mutant 339 | -10/Materials | Entered Mines 346 | -10/Mines | Met a Derelict bent on vengeance 367 | -10/Mines | A weapon hastily lodged in a ceiling crevice suddenly fell to the ground 425 | -10/Mines | Found a hidden stash of uninstalled traps 425 | -10/Mines | Discovered new exit (range 11) 615 | -10/Mines | Discovered new exit (range 12) 650 | -10/Mines | Learned location of Zion (-7) 780 | -10/Mines | Assembled infested the area 798 | -10/Mines | Core integrity fell below 50% 812 | -10/Mines | Core integrity fell below 20% 818 | -10/Mines | Destroyed by D-53 Grenadier with Mini Grenade Launcher Last Messages --------------- 00802_ Destroyed Asb. Hover Unit. 00802_ as-73026 knocked back. 00806_ C-30 ARC bursts open, deploying its payload. 00806_ D-53 Grenadier unfolds itself. 00807_ Knocked back. 00808_ as-66000 destroyed. 00808_ as-99841 destroyed. 00808_ as-73026 destroyed. 00808_ T-07 Excavator destroyed. 00809_ as-08077 destroyed. 00809_ as-78633 destroyed. 00809_ Aluminum Leg destroyed. 00811_ The unstable cave ceiling collapses. 00811_ as-94196 destroyed. 00813_ as-70147 destroyed. 00813_ as-49524 destroyed. 00813_ as-00064 destroyed. 00813_ as-09952 destroyed. 00814_ Med. Laser destroyed. 00818_ The unstable cave ceiling collapses. Map ----- +----------------------------------------------------+ | #=[= #????????#################????????????# | | #?????????????????????????????????????## | | ### #??????????????????????????????????????## | | ??# #???????????????????????????????????????## | | ??# #????????????????????????????????????????# | | ??# #????????????????????????????????????????## | | ?## #####?????????????????????????????????????## | | ?# #??????????????????????????????????????## | | ?# #???????????????????????????????????????# | | ?# #??????????????????????????????????????? | | ?# < #???????????????###???????????????????? | | ?# #??????????????? #???????????????????## | | ?##### ###########???????# #????????????????????# | | ?????# #??# ######### ##???????????????????# | | ?????# #### """ #??????????????????? | | ?????# """ ######### #???????????????????# | | ?????###### """ #???????# #???????????????????? | | ??????????# #???????# #???????????????????? | | ??????????########???????# #????????????????????# | | ?????????????????????????# ##???????????????????? | | ?????????????????????????#% #### #?????????????? | | ??????????????????????#### #?????????????? | | ?????????????????????## #######?????????????? | | ??????????????????#### d ##?????????????????? | | ?????????????????## ##????????????????? | | ?????????????????# @ #????????????????? | | ?????????????????# ##???????????????? | | ?????????????????## # #???????????????? | | ??????????????????#### d # #??????????????? | | ?????????????????????## #??????????????? | | ??????????????????????## % #???####???????? | | ???????????????????????## ##??## ######??? | | ????????????????????????## % #### ### | | ?????????????????????????# a%a % | | ?????????????????????????##### = ##### ###?? | | ?????????????????????????????# *%##???## #???? | | ?????????????????????????????##!| ##???## ##???? | | ??????????????????????????????# #?????####????? | | ?????????????????????????????## ##????????????? | | ?????????????????????????????# #????????????? | | ?????????????????????????????# #???????????? | | ?????????????????????????????# #???????????? | | ?????????????????????????????## ##???????????? | | ??????????????????????????????### ##????????????? | | ?????????????????????????????????###?????????????? | | ?????????????????????????????????????????????????? | | ?????????????????????????????????????????????????? | | | | | | | +----------------------------------------------------+ Best States ------------- Heat Dissipation 25 Energy Generation 10 Energy Capacity 250 Matter Stores 300 Matter Capacity 300 Sight Range 16 Terrain Scan Density 10 Evasion (%) 40 Item Schematics ----------------- None Robot Schematics ------------------ None Fabricated ------------ Nothing Alien Tech Used ----------------- None Achievements -------------- None Challenges ------------ None Game ------ Seed ManeuveringMassRecalibrator Manual? 0 Play Time 00:10:09 Cumulative 43.8 hours Start 2021.03.29 @ 14:34:04 End 2021.03.29 @ 14:43:33 Sessions 1 Manual Loads 0 Difficulty Rogue Special Mode None Game No. 45 Rogue 45 Adventurer 0 Explorer 0 Win Type - Total 0 Types 0/0/0/0/0/0/0/0/0 Lore% 13 Gallery% 37 Achievement% 26 Wizard Run 0 Options --------- ASCII 1 Keyboard 1 Movement Numpad Keybinds 0 Fullscreen 1 Font 18/SmallcapsGlow Map View 76x50 Tactical HUD 1 Map Filters NONE Filters NONE Steam 1 RUN: d4f7e0f5-78f9-4e1a-951a-6d1a16743120